fUSD/lending_fUSD_20260502
["ID","MTS","AMOUNT","RATE_DAILY","PERIOD"]
[421446605,1777661461000,-162.141956,0.00027838,7]
[421446607,1777661461000,-162.141964,0.00027838,7]
[421446608,1777661461000,-554.1349158,0.00027945,5]
[421446611,1777661461000,-161.4,0.00028,2]
[421446606,1777661461000,-162.141956,0.00027838,7]
[421446609,1777661461000,-250.0,0.00027945,5]
[421446610,1777661461000,-500.0,0.00027973,2]
[421446599,1777661461000,-1169.248139,0.00027671,7]
[421446643,1777661461000,-223.535256,0.000283,7]
[421446659,1777661461000,-470.72305189,0.000287,5]
[421446640,1777661461000,-457.39,0.000283,2]
[421446676,1777661461000,-160.0,0.00029,30]
[421446673,1777661461000,-160.98,0.00028979,30]
[421446677,1777661461000,-160.0,0.00029,3]
[421446680,1777661461000,-1587.979414,0.00029,7]
[421446678,1777661461000,-650.0,0.00029,2]
[421446679,1777661461000,-1587.979414,0.00029,7]
[421446684,1777661461000,-483.943138,0.00029,7]
[421446681,1777661461000,-1587.979414,0.00029,7]
[421446683,1777661461000,-483.943138,0.00029,7]
[421446682,1777661461000,-1587.979423,0.00029,7]
[421446686,1777661461000,-483.943138,0.00029,7]
[421446696,1777661461000,-450.0,0.00029041,5]
[421446674,1777661461000,-207.43500361,0.00029,30]
[421446695,1777661461000,-160.98,0.0002901,2]
[421446687,1777661461000,-483.943142,0.00029,7]
[421446690,1777661461000,-1061.164813,0.00029,7]
[421446688,1777661461000,-160.0,0.00029,3]
[421446691,1777661461000,-1061.164813,0.00029,7]
[421446689,1777661461000,-160.0,0.00029,7]
[421446692,1777661461000,-1061.164813,0.00029,7]
[421446693,1777661461000,-1061.164812,0.00029,7]
[421446697,1777661461000,-160.98,0.00029042,7]
[421446699,1777661461000,-160.98,0.00029105,2]
[421446700,1777661461000,-160.98,0.00029137,7]
[421446698,1777661461000,-160.98,0.00029074,30]
[421446638,1777661461000,-4235.5,0.00028267,2]
[421446694,1777661461000,-1500.0,0.00029,2]
[421446675,1777661461000,-160.0,0.00029,30]
[421446685,1777661461000,-162.38278084,0.00029,7]
[421446671,1777661461000,-160.98,0.00028915,2]
[421446642,1777661461000,-223.535256,0.000283,7]
[421446672,1777661461000,-160.98,0.00028947,7]
[421446644,1777661461000,-223.535262,0.000283,7]
[421446645,1777661461000,-12219.11,0.000284,2]
[421446641,1777661461000,-223.535256,0.000283,7]
[421446648,1777661461000,-7696.431595,0.000284,7]
[421446649,1777661461000,-7696.43159029,0.000284,7]
[421446650,1777661461000,-151.0,0.000284,7]
[421446660,1777661461000,-160.98,0.00028725,2]
[421446652,1777661461000,-350.0,0.00028493,5]
[421446653,1777661461000,-442.48,0.000285,7]
[421446654,1777661461000,-1552.039438,0.000285,2]
[421446655,1777661461000,-160.98,0.0002863,2]
[421446651,1777661461000,-234.37,0.00028493,2]
[421446667,1777661461000,-15227.55,0.000288,7]
[421446656,1777661461000,-160.98,0.00028661,7]
[421446658,1777661461000,-160.98,0.00028693,30]
[421446661,1777661461000,-906.0,0.00028739,3]
[421446663,1777661461000,-1000.0,0.00028767,5]
[421446670,1777661461000,-160.98,0.00028883,30]
[421446662,1777661461000,-160.98,0.00028756,7]
[421446666,1777661461000,-1308.73,0.000288,2]
[421446664,1777661461000,-160.98,0.00028788,30]
[421446665,1777661461000,-224.01888329,0.00028797,7]
[421446668,1777661461000,-160.98,0.0002882,2]
[421446657,1777661461000,-150.02,0.00028676,2]
[421446669,1777661461000,-160.98,0.00028852,7]
[421446742,1777661462000,-163.2,0.0003,2]
[421446732,1777661462000,-1004.44,0.00029915,30]
[421446746,1777661462000,-162.38278084,0.0003,7]
[421446740,1777661462000,-165.88752828,0.0003,15]
[421446744,1777661462000,-310.36484106,0.0003,2]
[421446736,1777661462000,-1004.44,0.00029966,30]
[421446747,1777661462000,-1500.0,0.0003,2]
[421446745,1777661462000,-277.44,0.0003,2]
[421446738,1777661462000,-1004.44,0.00029991,30]
[421446735,1777661462000,-1004.44,0.00029953,30]
[421446741,1777661462000,-150.0,0.0003,11]
[421446739,1777661462000,-161.4,0.0003,2]
[421446737,1777661462000,-1004.44,0.00029979,30]
[421446758,1777661462000,-214.41349796,0.0003013,2]
[421446748,1777661462000,-1004.44,0.00030004,30]
[421446750,1777661462000,-1004.44,0.0003003,30]
[421446752,1777661462000,-1004.44,0.00030055,30]
[421446749,1777661462000,-1004.44,0.00030017,30]
[421446751,1777661462000,-1004.44,0.00030043,30]
[421446759,1777661462000,-1004.44,0.00030132,30]
[421446757,1777661462000,-1004.44,0.00030119,30]
[421446753,1777661462000,-1004.44,0.00030068,30]
[421446760,1777661462000,-151.0,0.00030137,7]
[421446756,1777661462000,-1004.44,0.00030106,30]
[421446754,1777661462000,-1004.44,0.00030081,30]
[421446755,1777661462000,-1004.44,0.00030094,30]
[421446726,1777661462000,-1004.44,0.00029864,30]
[421446743,1777661462000,-160.0,0.0003,7]
[421446729,1777661462000,-1004.44,0.00029877,30]
[421446701,1777661462000,-160.98,0.00029169,30]
[421446730,1777661462000,-1004.44,0.00029889,30]
[421446707,1777661462000,-1500.0,0.000295,2]
[421446708,1777661462000,-1000.0,0.0002951,7]
[421446770,1777661462000,-354.30619093,0.00030137,5]
[421446706,1777661462000,-906.0,0.00029273,4]
[421446705,1777661462000,-161.16,0.00029232,7]
[421446703,1777661462000,-150.45193872,0.00029208,2]
[421446704,1777661462000,-250.93798309,0.00029208,2]
[421446702,1777661462000,-160.98,0.00029201,2]
[421446710,1777661462000,-3533.0,0.0002954,2]
[421446709,1777661462000,-150.0,0.00029534,2]
[421446711,1777661462000,-1350.0,0.0002954,2]
[421446713,1777661462000,-928.0,0.0002954,2]
[421446721,1777661462000,-906.0,0.00029807,4]
[421446727,1777661462000,-187.0,0.00029866,3]
[421446716,1777661462000,-15227.55,0.000296,7]
[421446717,1777661462000,-150.02,0.0002968,2]
[421446712,1777661462000,-623.0,0.0002954,2]
[421446714,1777661462000,-416.0,0.0002954,2]
[421446715,1777661462000,-550.0,0.00029589,5]
[421446719,1777661462000,-2000.0,0.00029755,2]
[421446722,1777661462000,-1004.44,0.00029813,30]
[421446724,1777661462000,-1004.44,0.00029838,30]
[421446725,1777661462000,-1004.44,0.00029851,30]
[421446733,1777661462000,-1004.44,0.00029928,30]
[421446723,1777661462000,-1004.44,0.00029826,30]
[421446728,1777661462000,-3926.62,0.00029872,2]
[421446731,1777661462000,-1004.44,0.00029902,30]
[421446734,1777661462000,-1004.44,0.0002994,30]
[421446718,1777661462000,-500.0,0.00029755,2]
[421446761,1777661462000,-151.0,0.00030137,7]
[421446720,1777661462000,-1004.44,0.000298,30]
[421446762,1777661462000,-151.0,0.00030137,7]
[421446795,1777661462000,-1004.44,0.00030157,30]
[421446797,1777661462000,-1004.44,0.00030183,30]
[421446799,1777661462000,-1004.44,0.00030196,30]
[421446800,1777661462000,-400.63,0.000302,2]
[421446802,1777661462000,-1004.44,0.00030221,30]
[421446810,1777661462000,-1004.44,0.00030311,30]
[421446801,1777661462000,-1004.44,0.00030209,30]
[421446804,1777661462000,-4235.5,0.00030239,2]
[421446803,1777661462000,-1004.44,0.00030234,30]
[421446809,1777661462000,-1004.44,0.00030298,30]
[421446808,1777661462000,-1004.44,0.00030285,30]
[421446807,1777661462000,-1004.44,0.00030272,30]
[421446806,1777661462000,-1004.44,0.0003026,30]
[421446805,1777661462000,-1004.44,0.00030247,30]
[421446812,1777661462000,-400.0,0.00030323,2]
[421446822,1777661462000,-200.0,0.00030438,2]
[421446811,1777661462000,-400.0,0.00030323,2]
[421446823,1777661462000,-200.0,0.00030438,2]
[421446814,1777661462000,-1004.44,0.00030323,30]
[421446815,1777661462000,-1004.44,0.00030336,30]
[421446817,1777661462000,-1004.44,0.00030349,30]
[421446821,1777661462000,-1004.44,0.000304,30]
[421446816,1777661462000,-906.0,0.00030341,5]
[421446819,1777661462000,-1004.44,0.00030374,30]
[421446818,1777661462000,-1004.44,0.00030362,30]
[421446820,1777661462000,-1004.44,0.00030387,30]
[421446824,1777661462000,-745.65223616,0.00030538,2]
[421446793,1777661462000,-294.01,0.00030137,60]
[421446794,1777661462000,-1004.44,0.00030145,30]
[421446813,1777661462000,-338.0,0.00030323,2]
[421446796,1777661462000,-1004.44,0.0003017,30]
[421446790,1777661462000,-870.689913,0.00030137,7]
[421446772,1777661462000,-1253.0,0.00030137,120]
[421446773,1777661462000,-3244.24973734,0.00030137,120]
[421446765,1777661462000,-1000.0,0.00030137,120]
[421446766,1777661462000,-1500.0,0.00030137,5]
[421446764,1777661462000,-1000.0,0.00030137,120]
[421446769,1777661462000,-150.72093999,0.00030137,5]
[421446767,1777661462000,-1151.0,0.00030137,120]
[421446763,1777661462000,-1457.79,0.00030137,2]
[421446768,1777661462000,-3433.0,0.00030137,120]
[421446774,1777661462000,-1888.0,0.00030137,120]
[421446778,1777661462000,-151.0,0.00030137,7]
[421446775,1777661462000,-797.08150659,0.00030137,2]
[421446776,1777661462000,-200.0,0.00030137,2]
[421446771,1777661462000,-19173.97544963,0.00030137,120]
[421446784,1777661462000,-1031.409998,0.00030137,7]
[421446781,1777661462000,-450.74608,0.00030137,7]
[421446792,1777661462000,-1691.03,0.00030137,2]
[421446798,1777661462000,-1579.0,0.00030186,3]
[421446787,1777661462000,-1031.41,0.00030137,7]
[421446788,1777661462000,-870.689913,0.00030137,7]
[421446782,1777661462000,-450.746081,0.00030137,7]
[421446789,1777661462000,-870.689913,0.00030137,7]
[421446791,1777661462000,-870.689909,0.00030137,7]
[421446786,1777661462000,-1031.409998,0.00030137,7]
[421446785,1777661462000,-1031.409998,0.00030137,7]
[421446779,1777661462000,-450.74608,0.00030137,7]
[421446780,1777661462000,-151.0,0.00030137,7]
[421446783,1777661462000,-200.0,0.00030137,2]
[421446777,1777661462000,-450.74608,0.00030137,7]
[421446859,1777661463000,-871.0,0.00031178,30]
[421446857,1777661463000,-906.0,0.00031171,30]
[421446858,1777661463000,-1256.0,0.00031171,30]
[421446856,1777661463000,-637.0,0.00031171,30]
[421446852,1777661463000,-11281.10526322,0.00031151,2]
[421446860,1777661463000,-251.0,0.00031179,30]
[421446851,1777661463000,-200.0,0.0003105,2]
[421446861,1777661463000,-1220.0,0.00031179,30]
[421446855,1777661463000,-196.0,0.00031171,30]
[421446853,1777661463000,-720.7632146,0.00031167,2]
[421446864,1777661463000,-3360.0,0.00031183,30]
[421446863,1777661463000,-518.0,0.00031183,30]
[421446867,1777661463000,-200.0,0.00031361,2]
[421446866,1777661463000,-200.0,0.00031361,2]
[421446868,1777661463000,-271.0,0.00031398,2]
[421446850,1777661463000,-200.0,0.0003105,2]
[421446869,1777661463000,-2000.0,0.000314,2]
[421446865,1777661463000,-6032.74616515,0.00031249,82]
[421446873,1777661463000,-4039.74,0.000315,2]
[421446872,1777661463000,-527.89,0.000315,2]
[421446871,1777661463000,-2111.6,0.000315,2]
[421446870,1777661463000,-906.0,0.00031409,6]
[421446862,1777661463000,-431.0,0.00031179,30]
[421446854,1777661463000,-663.0,0.00031171,30]
[421446843,1777661463000,-160.0,0.00031,120]
[421446842,1777661463000,-207.56351682,0.00031,120]
[421446874,1777661463000,-1135.46535153,0.00031507,5]
[421446830,1777661463000,-654.683004,0.000307,7]
[421446834,1777661463000,-221.01572,0.000307,7]
[421446829,1777661463000,-221.01571,0.000307,7]
[421446833,1777661463000,-654.683004,0.000307,7]
[421446825,1777661463000,-150.32,0.00030685,2]
[421446828,1777661463000,-654.683004,0.000307,7]
[421446827,1777661463000,-15227.55,0.000307,7]
[421446835,1777661463000,-654.683006,0.000307,7]
[421446831,1777661463000,-221.01571,0.000307,7]
[421446849,1777661463000,-150.0,0.00031011,2]
[421446832,1777661463000,-221.01571,0.000307,7]
[421446845,1777661463000,-160.0,0.00031,120]
[421446844,1777661463000,-160.0,0.00031,30]
[421446839,1777661463000,-906.0,0.00030875,6]
[421446847,1777661463000,-348.41786435,0.00031,5]
[421446837,1777661463000,-200.0,0.00030743,2]
[421446836,1777661463000,-152.0,0.00030732,3]
[421446840,1777661463000,-159.6,0.000309,120]
[421446848,1777661463000,-700.0,0.00031,2]
[421446841,1777661463000,-202.85443757,0.00031,5]
[421446846,1777661463000,-160.0,0.00031,30]
[421446838,1777661463000,-200.0,0.00030743,2]
[421446826,1777661463000,-150.0,0.00030685,30]
[421446877,1777661463000,-250.0,0.00031642,2]
[421446875,1777661463000,-161.0,0.00031507,30]
[421446908,1777661463000,-1220.0,0.00032179,30]
[421446904,1777661463000,-906.0,0.00032171,30]
[421446911,1777661463000,-3360.0,0.00032183,30]
[421446905,1777661463000,-1256.0,0.00032171,30]
[421446906,1777661463000,-871.0,0.00032178,30]
[421446913,1777661463000,-4235.5,0.0003221,5]
[421446914,1777661463000,-1000.0,0.0003234,2]
[421446909,1777661463000,-431.0,0.00032179,30]
[421446910,1777661463000,-518.0,0.00032183,30]
[421446912,1777661463000,-294.01,0.00032195,90]
[421446907,1777661463000,-251.0,0.00032179,30]
[421446917,1777661463000,-1000.0,0.0003234,2]
[421446924,1777661463000,-150.0,0.00032373,2]
[421446919,1777661463000,-1000.0,0.00032358,2]
[421446923,1777661463000,-1000.0,0.00032358,2]
[421446915,1777661463000,-1000.0,0.0003234,2]
[421446922,1777661463000,-1000.0,0.00032358,2]
[421446918,1777661463000,-1000.0,0.0003234,2]
[421446925,1777661463000,-906.0,0.00032477,7]
[421446916,1777661463000,-1000.0,0.0003234,2]
[421446926,1777661463000,-1797.749,0.0003254,2]
[421446876,1777661463000,-203.0,0.00031507,30]
[421446921,1777661463000,-1000.0,0.00032358,2]
[421446903,1777661463000,-637.0,0.00032171,30]
[421446920,1777661463000,-1000.0,0.00032358,2]
[421446899,1777661463000,-553.05400927,0.00032,120]
[421446878,1777661463000,-250.0,0.00031642,2]
[421446900,1777661463000,-259.0,0.00032137,30]
[421446880,1777661463000,-674.76389703,0.000317,2]
[421446879,1777661463000,-169.0,0.00031642,2]
[421446884,1777661463000,-154.1054953,0.00031778,60]
[421446882,1777661463000,-674.76389703,0.000317,2]
[421446885,1777661463000,-480.0,0.00031778,60]
[421446881,1777661463000,-674.76389703,0.000317,2]
[421446883,1777661463000,-312.6040984,0.00031778,60]
[421446886,1777661463000,-15227.55,0.000318,7]
[421446891,1777661463000,-244.954913,0.000318,7]
[421446887,1777661463000,-151.0,0.000318,7]
[421446896,1777661463000,-279.57658745,0.00032,120]
[421446890,1777661463000,-244.954913,0.000318,7]
[421446888,1777661463000,-151.0,0.000318,7]
[421446893,1777661463000,-906.0,0.00031943,7]
[421446892,1777661463000,-244.954916,0.000318,7]
[421446898,1777661463000,-361.68182147,0.00032,120]
[421446894,1777661463000,-297.96,0.00032,120]
[421446902,1777661463000,-196.0,0.00032171,30]
[421446895,1777661463000,-228.19374682,0.00032,120]
[421446901,1777661463000,-663.0,0.00032171,30]
[421446897,1777661463000,-239.24182003,0.00032,120]
[421446889,1777661463000,-244.954913,0.000318,7]
[421446966,1777661464000,-151.0,0.00032877,7]
[421446960,1777661464000,-151.0,0.00032877,7]
[421446965,1777661464000,-151.0,0.00032877,7]
[421446964,1777661464000,-151.0,0.00032877,7]
[421446970,1777661464000,-151.0,0.00032877,7]
[421446972,1777661464000,-151.0,0.00032877,7]
[421446958,1777661464000,-151.0,0.00032877,7]
[421446962,1777661464000,-151.0,0.00032877,7]
[421446963,1777661464000,-151.0,0.00032877,7]
[421446961,1777661464000,-151.0,0.00032877,7]
[421446971,1777661464000,-151.0,0.00032877,7]
[421446967,1777661464000,-151.0,0.00032877,7]
[421446984,1777661464000,-500.0,0.00032877,2]
[421446982,1777661464000,-500.0,0.00032877,2]
[421446975,1777661464000,-151.0,0.00032877,7]
[421446976,1777661464000,-219.341913,0.00032877,7]
[421446985,1777661464000,-500.0,0.00032877,2]
[421446986,1777661464000,-403.56755021,0.00032877,2]
[421446974,1777661464000,-151.0,0.00032877,7]
[421446977,1777661464000,-1457.79,0.00032877,2]
[421446983,1777661464000,-500.0,0.00032877,2]
[421446978,1777661464000,-5000.0,0.00032877,120]
[421446980,1777661464000,-500.0,0.00032877,2]
[421446979,1777661464000,-150.0,0.00032877,5]
[421446981,1777661464000,-500.0,0.00032877,2]
[421446955,1777661464000,-263.053458,0.00032877,7]
[421446968,1777661464000,-151.0,0.00032877,7]
[421446956,1777661464000,-263.053458,0.00032877,7]
[421446928,1777661464000,-623.0,0.0003254,2]
[421446959,1777661464000,-151.0,0.00032877,7]
[421446927,1777661464000,-668.219,0.0003254,2]
[421446936,1777661464000,-245.0,0.0003269,30]
[421446937,1777661464000,-348.87,0.00032877,2]
[421446929,1777661464000,-928.0,0.0003254,2]
[421446931,1777661464000,-292.5,0.00032548,2]
[421446930,1777661464000,-416.0,0.0003254,2]
[421446935,1777661464000,-157.47,0.00032603,120]
[421446933,1777661464000,-2000.0,0.0003256,2]
[421446932,1777661464000,-500.0,0.0003256,2]
[421446934,1777661464000,-150.0,0.00032562,2]
[421446939,1777661464000,-263.053458,0.00032877,7]
[421446948,1777661464000,-263.053458,0.00032877,7]
[421446947,1777661464000,-263.053458,0.00032877,7]
[421446941,1777661464000,-263.053458,0.00032877,7]
[421446942,1777661464000,-263.053458,0.00032877,7]
[421446940,1777661464000,-263.053458,0.00032877,7]
[421446943,1777661464000,-263.053458,0.00032877,7]
[421446938,1777661464000,-263.053458,0.00032877,7]
[421446945,1777661464000,-263.053458,0.00032877,7]
[421446949,1777661464000,-263.053458,0.00032877,7]
[421446944,1777661464000,-263.053458,0.00032877,7]
[421446946,1777661464000,-263.053458,0.00032877,7]
[421446950,1777661464000,-263.053458,0.00032877,7]
[421446951,1777661464000,-263.053458,0.00032877,7]
[421446953,1777661464000,-263.053458,0.00032877,7]
[421446954,1777661464000,-263.053458,0.00032877,7]
[421446957,1777661464000,-263.053452,0.00032877,7]
[421446952,1777661464000,-263.053458,0.00032877,7]
[421446988,1777661464000,-251.374813,0.00032877,7]
[421446973,1777661464000,-151.0,0.00032877,7]
[421446987,1777661464000,-251.374813,0.00032877,7]
[421447013,1777661464000,-315.842369,0.00033187,7]
[421447016,1777661464000,-153.290039,0.00033187,7]
[421447024,1777661464000,-361.68182147,0.000339,120]
[421447027,1777661464000,-265.0,0.00034,30]
[421447026,1777661464000,-200.0,0.00034,30]
[421447023,1777661464000,-906.0,0.00033545,9]
[421447025,1777661464000,-553.05400927,0.000339,120]
[421447031,1777661464000,-196.0,0.00034171,30]
[421447033,1777661464000,-906.0,0.00034171,30]
[421447032,1777661464000,-637.0,0.00034171,30]
[421447034,1777661464000,-1256.0,0.00034171,30]
[421447030,1777661464000,-663.0,0.00034171,30]
[421447028,1777661464000,-442.48,0.00034,7]
[421447015,1777661464000,-153.290039,0.00033187,7]
[421447029,1777661464000,-906.0,0.00034079,9]
[421447035,1777661464000,-871.0,0.00034178,30]
[421447036,1777661464000,-251.0,0.00034179,30]
[421447047,1777661464000,-232.0,0.00034247,120]
[421447037,1777661464000,-1220.0,0.00034179,30]
[421447043,1777661464000,-162.0,0.00034214,11]
[421447038,1777661464000,-431.0,0.00034179,30]
[421447039,1777661464000,-4235.5,0.00034182,7]
[421447040,1777661464000,-518.0,0.00034183,30]
[421447044,1777661464000,-294.01,0.00034228,90]
[421447045,1777661464000,-150.0,0.00034247,120]
[421447042,1777661464000,-150.0,0.0003419,2]
[421447041,1777661464000,-3360.0,0.00034183,30]
[421446998,1777661464000,-15227.55,0.000331,7]
[421447046,1777661464000,-213.0,0.00034247,120]
[421447021,1777661464000,-773.2413689,0.00033277,2]
[421446969,1777661464000,-151.0,0.00032877,7]
[421447017,1777661464000,-315.842369,0.00033187,7]
[421446989,1777661464000,-251.374813,0.00032877,7]
[421446992,1777661464000,-239.24182003,0.00033,120]
[421446995,1777661464000,-569.648249,0.00033,14]
[421446997,1777661464000,-906.0,0.00033011,8]
[421446993,1777661464000,-361.68182147,0.00033,120]
[421446991,1777661464000,-150.0,0.00032945,30]
[421446994,1777661464000,-553.05400927,0.00033,120]
[421446996,1777661464000,-750.0,0.00033,2]
[421446999,1777661464000,-151.0,0.000331,7]
[421447002,1777661464000,-196.0,0.00033171,30]
[421447005,1777661464000,-1256.0,0.00033171,30]
[421447000,1777661464000,-151.0,0.000331,7]
[421447014,1777661464000,-315.842369,0.00033187,7]
[421446990,1777661464000,-251.374819,0.00032877,7]
[421447003,1777661464000,-637.0,0.00033171,30]
[421447020,1777661464000,-436.29,0.00033191,2]
[421447018,1777661464000,-153.290032,0.00033187,7]
[421447019,1777661464000,-315.842364,0.00033187,7]
[421447001,1777661464000,-663.0,0.00033171,30]
[421447022,1777661464000,-271.11322393,0.00033425,5]
[421447012,1777661464000,-153.290039,0.00033187,7]
[421447011,1777661464000,-3360.0,0.00033183,30]
[421447007,1777661464000,-251.0,0.00033179,30]
[421447004,1777661464000,-906.0,0.00033171,30]
[421447008,1777661464000,-1220.0,0.00033179,30]
[421447010,1777661464000,-518.0,0.00033183,30]
[421447006,1777661464000,-871.0,0.00033178,30]
[421447009,1777661464000,-431.0,0.00033179,30]
[421447089,1777661465000,-405.9691818,0.00035491,2]
[421447079,1777661465000,-518.0,0.00035183,30]
[421447084,1777661465000,-500.0,0.00035366,2]
[421447077,1777661465000,-1220.0,0.00035179,30]
[421447078,1777661465000,-431.0,0.00035179,30]
[421447080,1777661465000,-3360.0,0.00035183,30]
[421447083,1777661465000,-2000.0,0.000353,2]
[421447087,1777661465000,-682.08039854,0.00035422,94]
[421447085,1777661465000,-2010.00729467,0.00035366,2]
[421447082,1777661465000,-424.0,0.00035219,2]
[421447099,1777661465000,-214.7,0.00035616,2]
[421447081,1777661465000,-169.99,0.00035205,30]
[421447091,1777661465000,-388.67,0.000355,20]
[421447095,1777661465000,-927.0,0.0003554,2]
[421447090,1777661465000,-3154.87383143,0.000355,120]
[421447092,1777661465000,-271.0,0.00035507,2]
[421447093,1777661465000,-11281.10526322,0.00035525,2]
[421447097,1777661465000,-3649.52737383,0.00035597,120]
[421447098,1777661465000,-202.01,0.00035616,30]
[421447096,1777661465000,-416.0,0.0003554,2]
[421447100,1777661465000,-207.83,0.00035616,2]
[421447101,1777661465000,-300.0,0.00035616,5]
[421447111,1777661465000,-150.0,0.00035899,2]
[421447105,1777661465000,-203.0,0.00035616,30]
[421447108,1777661465000,-250.0,0.00035752,2]
[421447075,1777661465000,-871.0,0.00035178,30]
[421447088,1777661465000,-3649.52737383,0.00035449,120]
[421447086,1777661465000,-3649.52737383,0.00035392,120]
[421447062,1777661465000,-499.0,0.00034901,15]
[421447069,1777661465000,-906.0,0.00035147,10]
[421447048,1777661465000,-358.57,0.00034326,30]
[421447049,1777661465000,-2471.66,0.00034326,30]
[421447050,1777661465000,-20823.96,0.00034326,30]
[421447051,1777661465000,-561.5,0.00034326,30]
[421447060,1777661465000,-1308.73,0.000349,2]
[421447058,1777661465000,-906.0,0.00034613,10]
[421447055,1777661465000,-400.0,0.00034433,2]
[421447057,1777661465000,-338.0,0.00034433,2]
[421447056,1777661465000,-400.0,0.00034433,2]
[421447053,1777661465000,-276.065,0.00034393,38]
[421447061,1777661465000,-12219.11,0.000349,2]
[421447054,1777661465000,-15227.55,0.000344,7]
[421447076,1777661465000,-251.0,0.00035179,30]
[421447052,1777661465000,-3605.217,0.00034393,38]
[421447110,1777661465000,-3649.52737383,0.00035886,120]
[421447063,1777661465000,-361.68182147,0.00035,120]
[421447066,1777661465000,-150.0,0.00035,2]
[421447073,1777661465000,-906.0,0.00035171,30]
[421447064,1777661465000,-553.05400927,0.00035,120]
[421447065,1777661465000,-244.8,0.00035,2]
[421447074,1777661465000,-1256.0,0.00035171,30]
[421447072,1777661465000,-637.0,0.00035171,30]
[421447068,1777661465000,-800.0,0.00035,2]
[421447070,1777661465000,-663.0,0.00035171,30]
[421447071,1777661465000,-196.0,0.00035171,30]
[421447067,1777661465000,-179.905,0.00035,2]
[421447059,1777661465000,-1500.0,0.00034795,2]
[421447102,1777661465000,-263.84120369,0.00035616,2]
[421447094,1777661465000,-623.0,0.0003554,2]
[421447107,1777661465000,-250.0,0.00035752,2]
[421447139,1777661465000,-3360.0,0.00036183,30]
[421447142,1777661465000,-259.0,0.00036247,30]
[421447140,1777661465000,-3649.52737383,0.00036184,120]
[421447144,1777661465000,-3649.52737383,0.00036329,120]
[421447145,1777661465000,-600.0,0.00036438,5]
[421447141,1777661465000,-906.0,0.00036214,11]
[421447143,1777661465000,-294.01,0.0003626,90]
[421447147,1777661465000,-436.29,0.0003651,2]
[421447148,1777661465000,-3649.52737383,0.00036519,120]
[421447149,1777661465000,-213.69470415,0.00036724,120]
[421447150,1777661465000,-214.33253288,0.00036724,120]
[421447151,1777661465000,-152.0,0.00036732,4]
[421447153,1777661465000,-906.0,0.00036748,12]
[421447154,1777661465000,-3649.52737383,0.00036862,120]
[421447157,1777661465000,-388.67,0.00037,14]
[421447156,1777661465000,-1004.42506459,0.00037,2]
[421447152,1777661465000,-3649.52737383,0.00036741,120]
[421447155,1777661465000,-10000.0,0.00037,7]
[421447158,1777661465000,-850.0,0.00037,2]
[421447160,1777661465000,-3649.52737383,0.00037068,120]
[421447159,1777661465000,-3649.52737383,0.00037044,120]
[421447161,1777661465000,-74808.0123193,0.000371,2]
[421447166,1777661465000,-637.0,0.00037171,30]
[421447164,1777661465000,-663.0,0.00037171,30]
[421447162,1777661465000,-3649.52737383,0.00037103,120]